fUSD/lending_fUSD_20260123
["ID","MTS","AMOUNT","RATE_DAILY","PERIOD"]
[403144196,1769200240693,-1000.0,0.000169,2]
[403144198,1769200240702,-250.0,0.00016905,2]
[403144200,1769200240711,-590.7261389,0.00016934,2]
[403144202,1769200240720,-250.0,0.00017,2]
[403144204,1769200240730,-1000.0,0.00017031,2]
[403144206,1769200240739,-836.0,0.0001704,2]
[403144208,1769200240748,-166.66,0.00017089,2]
[403144210,1769200240757,-322.6107,0.00017099,2]
[403144212,1769200240766,-250.0,0.00017099,2]
[403144214,1769200240775,-2468.0,0.00017099,2]
[403144216,1769200240784,-174.61919141,0.00017099,2]
[403144218,1769200240793,-250.0,0.00017099,2]
[403144220,1769200240803,-209.40437684,0.00017099,2]
[403144222,1769200240812,-250.0,0.00017099,2]
[403144224,1769200240821,-250.0,0.00017099,2]
[403144226,1769200240829,-250.0,0.00017099,2]
[403144228,1769200240838,-250.0,0.00017099,2]
[403144230,1769200240848,-250.0,0.00017099,2]
[403144231,1769200240859,-250.0,0.00017099,2]
[403144234,1769200240868,-250.0,0.00017099,2]
[403144236,1769200240878,-250.0,0.00017099,2]
[403144237,1769200240887,-250.0,0.00017099,2]
[403144238,1769200240896,-500.0,0.00017099,2]
[403144239,1769200240905,-854.2589148,0.00017099,2]
[403144240,1769200240914,-500.0,0.00017099,2]
[403144241,1769200240923,-500.0,0.00017099,2]
[403144242,1769200240932,-250.0,0.00017099,2]
[403144243,1769200240941,-500.0,0.00017099,2]
[403144244,1769200240950,-250.0,0.00017099,2]
[403144245,1769200240960,-500.0,0.00017099,2]
[403144246,1769200240970,-500.0,0.00017099,2]
[403144247,1769200240980,-250.0,0.00017099,2]
[403144248,1769200240990,-500.0,0.00017099,2]
[403144249,1769200241001,-500.0,0.00017099,2]
[403144250,1769200241011,-250.0,0.00017099,2]
[403144251,1769200241020,-500.0,0.00017099,2]
[403144252,1769200241030,-250.0,0.00017099,2]
[403144253,1769200241039,-500.0,0.00017099,2]
[403144254,1769200241051,-500.0,0.00017099,2]
[403144255,1769200241060,-250.0,0.00017099,2]
[403144256,1769200241069,-500.0,0.00017099,2]
[403144257,1769200241079,-500.0,0.00017099,2]
[403144258,1769200241088,-500.0,0.00017099,2]
[403144259,1769200241097,-250.0,0.00017099,2]
[403144260,1769200241107,-500.0,0.00017099,2]
[403144261,1769200241123,-250.0,0.00017099,2]
[403144262,1769200241132,-500.0,0.00017099,2]
[403144263,1769200241141,-500.0,0.00017099,2]
[403144264,1769200241150,-500.0,0.00017099,2]
[403144265,1769200241161,-250.0,0.00017099,2]
[403144266,1769200241172,-500.0,0.00017099,2]
[403144267,1769200241182,-250.0,0.00017099,2]
[403144268,1769200241192,-500.0,0.00017099,2]
[403144269,1769200241202,-250.0,0.00017099,2]
[403144270,1769200241212,-500.0,0.00017099,2]
[403144271,1769200241222,-500.0,0.00017099,2]
[403144272,1769200241232,-500.0,0.00017099,2]
[403144273,1769200241242,-500.0,0.00017099,2]
[403144274,1769200241257,-500.0,0.00017099,2]
[403144275,1769200241267,-500.0,0.00017099,2]
[403144276,1769200241276,-500.0,0.00017099,2]
[403144277,1769200241286,-578.20924308,0.00017099,2]
[403144278,1769200241295,-500.0,0.00017099,2]
[403144279,1769200241304,-500.0,0.00017099,2]
[403144280,1769200241313,-151.0,0.00017099,2]
[403144281,1769200241323,-500.0,0.00017099,2]
[403144282,1769200241332,-500.0,0.00017099,2]
[403144283,1769200241341,-151.0,0.00017099,2]
[403144284,1769200241351,-500.0,0.00017099,2]
[403144285,1769200241366,-500.0,0.00017099,2]
[403144286,1769200241375,-151.0,0.00017099,2]
[403144287,1769200241386,-500.0,0.00017099,2]
[403144288,1769200241396,-500.0,0.00017099,2]
[403144289,1769200241406,-151.0,0.00017099,2]
[403144290,1769200241416,-500.0,0.00017099,2]
[403144291,1769200241426,-151.0,0.00017099,2]
[403144292,1769200241435,-151.0,0.00017099,2]
[403144293,1769200241444,-151.0,0.00017099,2]
[403144294,1769200241453,-500.0,0.00017099,2]
[403144295,1769200241463,-500.0,0.00017099,2]
[403144296,1769200241472,-500.0,0.00017099,2]
[403144297,1769200241481,-250.0,0.00017099,2]
[403144298,1769200241490,-500.0,0.00017099,2]
[403144299,1769200241500,-151.0,0.00017099,2]
[403144300,1769200241509,-250.0,0.00017099,2]
[403144301,1769200241518,-500.0,0.00017099,2]
[403144302,1769200241527,-151.0,0.00017099,2]
[403144303,1769200241536,-250.0,0.00017099,2]
[403144304,1769200241545,-500.0,0.00017099,2]
[403144305,1769200241554,-500.0,0.00017099,2]
[403144306,1769200241563,-151.0,0.00017099,2]
[403144307,1769200241572,-250.0,0.00017099,2]
[403144308,1769200241582,-500.0,0.00017099,2]
[403144309,1769200241591,-151.0,0.00017099,2]
[403144310,1769200241600,-250.0,0.00017099,2]
[403144311,1769200241614,-250.0,0.00017099,2]
[403144312,1769200241624,-250.0,0.00017099,2]
[403144313,1769200241633,-250.0,0.00017099,2]
[403144314,1769200241642,-250.0,0.00017099,2]
[403144315,1769200241651,-250.0,0.00017099,2]
[403144316,1769200241660,-391.18071828,0.00017099,2]
[403144317,1769200241670,-250.0,0.00017099,2]
[403144318,1769200241679,-250.0,0.00017099,2]
[403144319,1769200241687,-250.0,0.00017099,2]
[403144320,1769200241696,-250.0,0.00017099,2]
[403144321,1769200241705,-250.0,0.00017099,2]
[403144322,1769200241714,-250.0,0.00017099,2]
[403144323,1769200241723,-250.0,0.00017099,2]
[403144324,1769200241732,-250.0,0.00017099,2]
[403144325,1769200241741,-250.0,0.00017099,2]
[403144326,1769200241750,-250.0,0.00017099,2]
[403144327,1769200241759,-250.0,0.00017099,2]
[403144328,1769200241768,-1600.0,0.000172,6]
[403144329,1769200241778,-915.43,0.00017211,2]
[403144330,1769200241787,-1338.65325195,0.00017278,2]
[403144331,1769200241796,-1000.0,0.000173,2]
[403144332,1769200241806,-154.00462154,0.000173,2]
[403144333,1769200241815,-2500.0,0.000173,6]
[403144334,1769200241824,-556.37,0.00017313,2]
[403144335,1769200241833,-3300.0,0.000174,6]
[403144336,1769200241842,-590.7261389,0.00017417,2]
[403144337,1769200241851,-154.00462154,0.0001742,2]
[403144338,1769200241863,-176.1,0.00017433,2]
[403144339,1769200241872,-877.0,0.0001746,2]
[403144340,1769200241882,-287.84,0.00017488,2]
[403144341,1769200241891,-1000.0,0.000175,2]
[403144342,1769200241901,-4200.0,0.000175,6]
[403144343,1769200241910,-1553.0,0.00017512,2]
[403144344,1769200241919,-877.0,0.00017531,2]
[403144345,1769200241929,-2000.0,0.00017534,2]
[403144346,1769200241938,-2000.0,0.00017534,2]
[403144347,1769200241947,-2000.0,0.00017534,2]
[403144348,1769200241956,-2000.0,0.00017534,2]
[403144349,1769200241966,-500.0,0.00017534,7]
[403144350,1769200241975,-500.0,0.00017534,7]
[403144351,1769200241985,-150.0,0.00017534,2]
[403144352,1769200241995,-150.0,0.00017534,2]
[403144353,1769200242005,-500.0,0.00017534,2]
[403144354,1769200242014,-500.0,0.00017534,2]
[403144355,1769200242023,-200.0,0.00017534,2]
[403144356,1769200242033,-500.0,0.00017534,2]
[403144357,1769200242043,-150.0,0.00017534,2]
[403144358,1769200242052,-500.0,0.00017534,2]
[403144359,1769200242062,-150.0,0.00017534,2]
[403144360,1769200242071,-154.00462154,0.0001754,2]
[403144361,1769200242080,-158.35836296,0.00017551,2]
[403144362,1769200242090,-1000.0,0.00017555,2]
[403144363,1769200242099,-1332.0,0.00017555,2]
[403144364,1769200242111,-615.0,0.00017555,2]
[403144365,1769200242120,-1408.0,0.00017555,2]
[403144366,1769200242130,-1000.0,0.00017556,2]
[403144367,1769200242139,-1000.0,0.00017556,2]
[403144368,1769200242149,-1000.0,0.00017556,2]
[403144369,1769200242160,-1000.0,0.00017556,2]
[403144370,1769200242171,-876.427,0.00017556,2]
[403144371,1769200242183,-150.0,0.00017589,2]
[403144372,1769200242192,-150.0,0.00017589,2]
[403144373,1769200242202,-500.0,0.00017589,2]
[403144374,1769200242211,-500.0,0.00017589,2]
[403144375,1769200242222,-500.0,0.00017589,2]
[403144376,1769200242232,-150.0,0.00017589,2]
[403144377,1769200242243,-500.0,0.00017589,2]
[403144378,1769200242253,-1000.0,0.000176,2]
[403144379,1769200242262,-800.0,0.000176,6]
[403144380,1769200242272,-999.99999983,0.0001761,2]
[403144381,1769200242282,-208.03774045,0.0001764,2]
[403144382,1769200242291,-150.0,0.00017644,2]
[403144383,1769200242300,-150.0,0.00017644,2]
[403144384,1769200242310,-500.0,0.00017644,2]
[403144385,1769200242320,-500.0,0.00017644,2]
[403144386,1769200242329,-500.0,0.00017644,2]
[403144387,1769200242338,-200.0,0.00017644,2]
[403144388,1769200242348,-500.0,0.00017644,2]
[403144389,1769200242357,-181.08010149,0.00017647,2]
[403144390,1769200242370,-218.7863994,0.00017647,2]
[403144391,1769200242380,-885.86649465,0.00017647,2]
[403144392,1769200242390,-154.00462154,0.0001766,2]
[403144393,1769200242399,-877.0,0.00017682,2]
[403144394,1769200242409,-1000.0,0.00017684,2]
[403144395,1769200242418,-150.0,0.00017698,2]
[403144396,1769200242427,-420.82470435,0.00017698,2]
[403144397,1769200242436,-274.27837996,0.00017698,2]
[403144398,1769200242445,-500.0,0.00017698,2]
[403144399,1769200242454,-527.36277185,0.00017698,2]
[403144400,1769200242464,-500.0,0.00017698,2]
[403144401,1769200242473,-500.0,0.00017699,2]
[403144402,1769200242482,-150.0,0.00017699,2]
[403144403,1769200242491,-500.0,0.00017699,2]
[403144404,1769200242500,-152.84284681,0.00017699,2]
[403144405,1769200242510,-500.0,0.00017699,2]
[403144406,1769200242519,-500.0,0.00017699,2]
[403144407,1769200242528,-1000.0,0.000177,2]
[403144408,1769200242538,-800.0,0.000177,6]
[403144409,1769200242547,-403.0,0.000177,5]
[403144410,1769200242556,-1000.0,0.0001773,2]
[403144411,1769200242566,-1000.0,0.0001773,2]
[403144412,1769200242576,-150.0,0.00017753,2]
[403144413,1769200242585,-500.0,0.00017753,2]
[403144414,1769200242594,-500.0,0.00017753,2]
[403144415,1769200242604,-500.0,0.00017754,2]
[403144416,1769200242616,-500.0,0.00017754,2]
[403144417,1769200242625,-500.0,0.00017754,2]
[403144418,1769200242635,-500.0,0.00017754,2]
[403144419,1769200242644,-154.00462154,0.0001778,2]
[403144420,1769200242653,-877.0,0.00017795,2]
[403144421,1769200242663,-800.0,0.000178,6]
[403144422,1769200242672,-1553.0,0.00017808,2]
[403144423,1769200242681,-250.0,0.00017808,2]
[403144424,1769200242691,-500.0,0.00017808,2]
[403144425,1769200242699,-500.0,0.00017808,2]
[403144426,1769200242709,-500.0,0.00017808,2]
[403144427,1769200242718,-500.0,0.00017809,2]
[403144428,1769200242727,-500.0,0.00017809,2]
[403144429,1769200242737,-500.0,0.00017809,2]
[403144430,1769200242746,-500.0,0.00017809,2]
[403144431,1769200242756,-6645.66140582,0.0001783,2]
[403144432,1769200242765,-877.0,0.00017839,2]
[403144433,1769200242774,-500.0,0.00017863,2]
[403144434,1769200242784,-500.0,0.00017863,2]
[403144435,1769200242793,-500.0,0.00017863,2]
[403144436,1769200242803,-500.0,0.00017863,2]
[403144437,1769200242812,-500.0,0.00017863,2]
[403144438,1769200242821,-500.0,0.00017863,2]
[403144439,1769200242831,-500.0,0.00017863,2]
[403144440,1769200242840,-1002.0,0.000179,3]
[403144441,1769200242851,-890.0,0.000179,2]
[403144442,1769200242864,-590.7261389,0.000179,2]
[403144443,1769200242873,-485.78693407,0.000179,2]
[403144444,1769200242883,-800.0,0.000179,6]
[403144445,1769200242892,-540.06227295,0.000179,2]
[403144446,1769200242901,-1361.45905748,0.000179,2]
[403144447,1769200242910,-154.00462154,0.000179,2]
[403144448,1769200242920,-8667.40045111,0.000179,2]
[403144449,1769200242929,-805.50550802,0.000179,3]
[403144450,1769200242939,-5283.81108714,0.000179,2]
[403144451,1769200242948,-500.0,0.000179,2]
[403144453,1769200242957,-500.0,0.000179,2]
[403144454,1769200242967,-500.0,0.000179,2]
[403144455,1769200242976,-500.0,0.000179,2]
[403144456,1769200242985,-500.0,0.000179,2]
[403144457,1769200242994,-500.0,0.000179,2]
[403144458,1769200243004,-500.0,0.000179,2]
[403144461,1769200243013,-500.0,0.000179,2]
[403144464,1769200243022,-500.0,0.000179,2]
[403144466,1769200243031,-500.0,0.000179,2]
[403144468,1769200243040,-500.0,0.000179,2]
[403144470,1769200243049,-500.0,0.000179,2]
[403144472,1769200243059,-500.0,0.000179,2]
[403144474,1769200243068,-500.0,0.000179,2]
[403144477,1769200243077,-500.0,0.000179,2]
[403144480,1769200243086,-500.0,0.000179,2]
[403144482,1769200243095,-500.0,0.000179,2]
[403144483,1769200243104,-500.0,0.000179,2]
[403144484,1769200243116,-500.0,0.000179,2]
[403144485,1769200243125,-500.0,0.000179,2]
[403144486,1769200243135,-500.0,0.000179,2]
[403144487,1769200243144,-500.0,0.000179,2]
[403144488,1769200243154,-500.0,0.000179,2]
[403144489,1769200243164,-500.0,0.000179,2]
[403144490,1769200243176,-500.0,0.000179,2]
[403144491,1769200243186,-500.0,0.000179,2]
[403144492,1769200243195,-500.0,0.000179,2]
[403144493,1769200243205,-500.0,0.000179,2]
[403144494,1769200243215,-500.0,0.000179,2]
[403144495,1769200243224,-500.0,0.000179,2]
[403144496,1769200243234,-2969.0,0.000179,2]
[403144497,1769200243243,-877.0,0.00017903,2]
[403144498,1769200243253,-500.0,0.00017918,2]
[403144499,1769200243263,-500.0,0.00017918,2]
[403144500,1769200243523,-500.0,0.00017918,2]
[403144501,1769200243601,-500.0,0.00017918,2]
[403144502,1769200243613,-255.87876924,0.00017918,2]
[403144503,1769200243622,-490.0,0.00017918,2]
[403144504,1769200243631,-500.0,0.00017918,2]
[403144506,1769200243640,-400.0,0.0001797,2]
[403144508,1769200243650,-502.67274929,0.0001797,2]
[403144510,1769200243659,-700.0,0.0001797,2]
[403144512,1769200243669,-700.0,0.0001797,2]
[403144514,1769200243678,-802.43614103,0.0001797,2]
[403144516,1769200243688,-500.0,0.00017972,2]
[403144517,1769200243697,-500.0,0.00017972,2]
[403144518,1769200243706,-460.93814025,0.00017973,2]
[403144519,1769200243716,-500.0,0.00017973,2]
[403144520,1769200243725,-150.0,0.00017973,2]
[403144521,1769200243734,-150.0,0.00017973,2]
[403144522,1769200243744,-151.0,0.00017997,2]
[403144523,1769200243753,-150.0,0.00017999,2]
[403144524,1769200243762,-300.0,0.00017999,2]
[403144525,1769200243772,-300.0,0.00017999,2]
[403144526,1769200243782,-3097124.80826243,0.00018,2]
[403144527,1769200243792,-68025.95559153,0.00018,2]
[403144528,1769200243802,-304083.8784175,0.00018,2]
[403144529,1769200243811,-150.0,0.00018,2]
[403144530,1769200243820,-2536.75174456,0.00018,2]
[403144531,1769200243829,-150.0,0.00018,2]
[403144532,1769200243839,-4384.97455068,0.00018,2]
[403144533,1769200243848,-3181.8052028,0.00018,2]
[403144534,1769200243857,-150.0,0.00018,2]
[403144535,1769200243869,-500.0,0.00018,2]
[403144536,1769200243879,-500.0,0.00018,2]
[403144537,1769200243888,-500.0,0.00018,2]
[403144538,1769200243897,-500.0,0.00018,2]
[403144539,1769200243906,-500.0,0.00018,2]
[403144540,1769200243915,-500.0,0.00018,2]
[403144541,1769200243925,-500.0,0.00018,2]
[403144542,1769200243933,-294.74644974,0.00018,2]
[403144543,1769200243943,-618.42976795,0.00018,2]
[403144544,1769200243952,-319.65700763,0.00018,2]
[403144545,1769200243961,-1269.0,0.00018,2]
[403144546,1769200243970,-151.0,0.00018,2]
[403144547,1769200243979,-1265.0,0.00018,2]
[403144548,1769200243988,-166.29296141,0.00018,2]
[403144549,1769200243997,-151.0,0.00018,2]
[403144550,1769200244007,-151.0,0.00018,2]
[403144551,1769200244016,-151.0,0.00018,2]
[403144552,1769200244026,-151.0,0.00018,2]
[403144553,1769200244036,-151.0,0.00018,2]
[403144554,1769200244044,-151.0,0.00018,2]
[403144555,1769200244054,-151.0,0.00018,2]
[403144556,1769200244063,-192.28780433,0.00018,2]
[403144557,1769200244072,-151.0,0.00018,2]
[403144558,1769200244081,-1000.0,0.00018,2]
[403144559,1769200244091,-2575645.81313635,0.00018,2]
[403144560,1769200244463,-10201.02688643,0.00018,2]
[403144561,1769200244474,-1860.73995632,0.00018,2]
[403144562,1769200244485,-350.46299235,0.00018,2]
[403144563,1769200244496,-1346.9528493,0.00018,2]
[403144564,1769200244508,-323.311332,0.00018,2]
[403144565,1769200244598,-44564.16481093,0.00018,2]
[403144566,1769200244609,-774.8112373,0.00018,2]
[403144567,1769200244635,-59353.21725342,0.00018,2]
[403144568,1769200245185,-25440.48808433,0.00018,2]
[403144569,1769200245217,-398.20745252,0.00018,2]
[403144570,1769200245249,-19.93448311,0.00018,2]
[403144571,1769200245260,-2904.87667842,0.00018,2]
[403144572,1769200245272,-179278.79918423,0.00018,2]
[403144573,1769200245300,-34569.494305,0.00018,2]
[403144574,1769200245322,-965.8982694,0.00018,2]
[403144575,1769200245341,-667.95040704,0.00018,2]
[403144576,1769200245374,-495.26323143,0.00018,2]
[403144577,1769200245403,-433.91319503,0.00018,2]
[403144585,1769200246211,-151.0,0.00015758,2]
[403144586,1769200246221,-674.99408994,0.00017555,2]
[403144587,1769200246313,-1766.00591006,0.00017555,2]
[403144588,1769200246323,-2740.89408994,0.00018,2]
[403144589,1769200246334,-330.15551753,0.00018,2]
[403144592,1769200246973,-519.33582053,0.00018,2]
[403144593,1769200253672,1000.0,0.00013455,2]
[403144713,1769201335349,-589.64888391,0.00013698,2]
[403144714,1769201335378,-500.0,0.00013698,2]
[403144720,1769201349136,-1200.0,0.00013754,2]
[403144721,1769201349156,-302.41974858,0.00013755,2]
[403144722,1769201349176,-500.0,0.00013755,2]
[403144723,1769201349196,-500.0,0.00013755,2]
[403144724,1769201349215,-449.86533864,0.00013755,2]
[403144725,1769201349234,-1265.0,0.00015294,2]
[403144726,1769201349254,-1108.55744878,0.00015294,2]
[403144760,1769201432705,-1265.0,0.00015294,2]
[403144761,1769201432716,-1265.0,0.00015354,2]
[403144762,1769201432726,-274.83393608,0.0001589,2]
[403144763,1769201432772,-54.16606392,0.0001589,2]
[403144764,1769201432782,-217.23,0.000162,2]
[403144765,1769201432793,-192.81,0.00016319,2]
[403144766,1769201432803,-151.0,0.00016321,2]
[403144767,1769201432815,-190.17693127,0.00016596,2]
[403144768,1769201432826,-150.0,0.00016607,2]
[403144769,1769201432837,-2400.39,0.00016625,2]
[403144770,1769201432850,-158.41819238,0.00016652,2]
[403144771,1769201432861,-500.0,0.00016652,2]
[403144772,1769201432872,-270.23008688,0.00016652,2]
[403144773,1769201432884,-500.0,0.00016652,2]
[403144774,1769201432896,-500.0,0.00016652,2]
[403144775,1769201432908,-500.0,0.00016652,2]
[403144776,1769201432919,-500.0,0.00016652,2]
[403144777,1769201432931,-500.0,0.00016652,2]
[403144778,1769201432943,-509.22751466,0.00016652,2]
[403144779,1769201432954,-500.0,0.00016652,2]
[403144780,1769201432965,-67.98586127,0.00016653,2]
[403144781,1769201432989,-500.0,0.00016652,2]
[403144782,1769201433000,-36745.4170243,0.00016653,2]
[403144783,1769201433013,-37772.08710182,0.00016653,2]
[403144784,1769201433046,-356.82273408,0.00016653,2]
[403144785,1769201433087,-3639.96045773,0.00016653,2]
[403144786,1769201433099,-447.5,0.00016653,2]
[403144787,1769201433144,-590.2430935,0.00016653,2]
[403144835,1769201438280,-7225.93981042,0.00016653,2]
[403144836,1769201438337,-954.83618338,0.00016653,2]
[403144854,1769201438716,-1110.59370139,0.00016653,2]
[403144855,1769201438727,-1613.37523621,0.00016653,2]
[403144856,1769201438738,-344.52292256,0.00016653,2]
[403144857,1769201438750,-468.98077413,0.00016653,2]
[403144858,1769201438761,-3973.34788819,0.00016653,2]
[403144859,1769201438771,-7389.36454677,0.00016653,2]
[403144862,1769201438793,-2323.17640182,0.00016653,2]
[403144864,1769201438809,-2328.19929045,0.00016653,2]
[403145038,1769201440418,-30182.6588683,0.00016653,2]
[403145040,1769201440429,-10208.49682375,0.00016653,2]
[403145043,1769201440442,-2111.11640451,0.00016653,2]
[403145045,1769201440453,-850145.37487542,0.00016653,2]
[403145047,1769201440462,-2136.72,0.00016696,2]
[403145049,1769201440475,-166.5,0.00016712,2]
[403145051,1769201440484,-151.0,0.00016743,2]
[403145053,1769201440494,-404.0,0.00016751,2]
[403145055,1769201440504,-19143.5,0.00016753,2]
[403145057,1769201440517,-200.0,0.00016843,2]
[403145058,1769201440527,-501.10663704,0.000169,2]
[403145059,1769201440537,-501.10663702,0.000169,2]
[403145060,1769201440547,-501.10663702,0.000169,2]
[403145061,1769201440557,-1000.0,0.00017099,2]
[403145062,1769201440567,-250.0,0.00017099,2]
[403145063,1769201440577,-854.2589148,0.00017099,2]
[403145064,1769201440587,-174.61919141,0.00017099,2]
[403145065,1769201440596,-2468.0,0.00017099,2]
[403145066,1769201440605,-250.0,0.00017099,2]
[403145067,1769201440615,-250.0,0.00017099,2]
[403145069,1769201440624,-250.0,0.00017099,2]
[403145071,1769201440633,-250.0,0.00017099,2]
[403145073,1769201440643,-250.0,0.00017099,2]
[403145075,1769201440651,-250.0,0.00017099,2]
[403145077,1769201440660,-250.0,0.00017099,2]
[403145079,1769201440669,-250.0,0.00017099,2]
[403145081,1769201440678,-250.0,0.00017099,2]
[403145083,1769201440687,-250.0,0.00017099,2]
[403145085,1769201440696,-578.20924308,0.00017099,2]
[403145087,1769201440709,-500.0,0.00017099,2]
[403145089,1769201440719,-500.0,0.00017099,2]
[403145091,1769201440728,-250.0,0.00017099,2]
[403145093,1769201440737,-500.0,0.00017099,2]
[403145095,1769201440746,-250.0,0.00017099,2]
[403145097,1769201440755,-500.0,0.00017099,2]
[403145099,1769201440764,-250.0,0.00017099,2]
[403145101,1769201440773,-500.0,0.00017099,2]
[403145103,1769201440784,-250.0,0.00017099,2]
[403145106,1769201440794,-500.0,0.00017099,2]
[403145108,1769201440803,-500.0,0.00017099,2]
[403145109,1769201440812,-500.0,0.00017099,2]
[403145111,1769201440822,-500.0,0.00017099,2]
[403145114,1769201440831,-322.6107,0.00017099,2]
[403145116,1769201440840,-500.0,0.00017099,2]
[403145118,1769201440849,-151.0,0.00017099,2]
[403145120,1769201440858,-500.0,0.00017099,2]
[403145122,1769201440867,-500.0,0.00017099,2]
[403145124,1769201440876,-151.0,0.00017099,2]
[403145126,1769201440885,-500.0,0.00017099,2]
[403145128,1769201440895,-151.0,0.00017099,2]
[403145130,1769201440909,-500.0,0.00017099,2]
[403145132,1769201440918,-151.0,0.00017099,2]
[403145134,1769201440927,-500.0,0.00017099,2]
[403145136,1769201440936,-500.0,0.00017099,2]
[403145138,1769201440949,-500.0,0.00017099,2]
[403145140,1769201440958,-151.0,0.00017099,2]
[403145142,1769201440968,-151.0,0.00017099,2]
[403145144,1769201440977,-151.0,0.00017099,2]
[403145146,1769201440986,-151.0,0.00017099,2]
[403145149,1769201440996,-250.0,0.00017099,2]
[403145151,1769201441006,-151.0,0.00017099,2]
[403145153,1769201441015,-250.0,0.00017099,2]
[403145154,1769201441024,-250.0,0.00017099,2]
[403145157,1769201441033,-151.0,0.00017099,2]
[403145159,1769201441043,-250.0,0.00017099,2]
[403145161,1769201441053,-151.0,0.00017099,2]
[403145163,1769201441063,-250.0,0.00017099,2]
[403145164,1769201441072,-500.0,0.00017099,2]
[403145167,1769201441081,-500.0,0.00017099,2]
[403145168,1769201441091,-500.0,0.00017099,2]
[403145171,1769201441104,-500.0,0.00017099,2]
[403145173,1769201441113,-500.0,0.00017099,2]
[403145175,1769201441123,-500.0,0.00017099,2]
[403145177,1769201441133,-500.0,0.00017099,2]
[403145179,1769201441143,-500.0,0.00017099,2]
[403145181,1769201441152,-500.0,0.00017099,2]
[403145183,1769201441161,-500.0,0.00017099,2]
[403145185,1769201441171,-500.0,0.00017099,2]
[403145187,1769201441180,-761.77,0.00017111,2]
[403145189,1769201441189,-1612.0,0.00017379,2]
[403145191,1769201441198,-1000.0,0.000174,2]
[403145193,1769201441208,-161.4,0.00017423,2]
[403145195,1769201441217,-1612.0,0.00017457,2]
[403145197,1769201441226,-1000.0,0.00017549,2]
[403145199,1769201441235,-158.35836296,0.00017551,2]
[403145201,1769201441244,-500.0,0.00017589,2]
[403145203,1769201441253,-150.0,0.00017589,2]
[403145205,1769201441262,-500.0,0.00017589,2]
[403145207,1769201441272,-150.0,0.00017589,2]
[403145209,1769201441280,-500.0,0.00017589,2]
[403145211,1769201441290,-150.0,0.00017589,2]
[403145214,1769201441299,-255.87876924,0.00017589,2]
[403145216,1769201441314,-500.0,0.00017589,2]
[403145218,1769201441323,-150.0,0.00017589,2]
[403145220,1769201441332,-150.0,0.00017637,2]
[403145222,1769201441341,-500.0,0.00017644,2]
[403145224,1769201441351,-150.0,0.00017644,2]
[403145226,1769201441360,-150.0,0.00017644,2]
[403145228,1769201441369,-500.0,0.00017644,2]
[403145230,1769201441379,-500.0,0.00017644,2]
[403145232,1769201441389,-150.0,0.00017644,2]
[403145234,1769201441398,-500.0,0.00017644,2]
[403145236,1769201441407,-150.0,0.00017644,2]
[403145238,1769201441416,-181.08010149,0.00017647,2]
[403145240,1769201441426,-885.86649465,0.00017647,2]